fUST/lending_fUST_20240902
["ID","MTS","AMOUNT","RATE_DAILY","PERIOD"]
[336931204,1725245469826,-648.9,0.00026027,2]
[336931205,1725245469836,-2271.45,0.00026027,2]
[336931206,1725245469847,-500.0,0.00026027,2]
[336931207,1725245469858,-500.0,0.00026027,2]
[336931208,1725245469867,-500.0,0.00026027,2]
[336931209,1725245469880,-1210.88,0.00026027,2]
[336931210,1725245469892,-1602.93,0.00026027,2]
[336931211,1725245469902,-500.0,0.00026027,2]
[336931212,1725245469912,-518.44,0.00026027,2]
[336931213,1725245469923,-583.86,0.00026027,2]
[336931214,1725245469932,-500.0,0.00026027,2]
[336931215,1725245469942,-796.69,0.00026027,2]
[336931216,1725245469951,-500.0,0.00026027,2]
[336931217,1725245469963,-1678.17,0.00026027,2]
[336931218,1725245469972,-938.05,0.00026027,2]
[336931219,1725245469982,-624.98,0.00026027,2]
[336931220,1725245469992,-500.0,0.00026027,2]
[336931221,1725245470002,-208.34327963,0.00026027,2]
[336931222,1725245470013,-549.52,0.00026027,2]
[336931223,1725245470024,-1271.02,0.00026027,2]
[336931224,1725245470035,-500.0,0.00026027,2]
[336931225,1725245470044,-944.3,0.00026027,2]
[336931226,1725245470054,-500.0,0.00026027,2]
[336931227,1725245470064,-1442.52,0.00026027,2]
[336931228,1725245470073,-1220.53,0.00026027,2]
[336931229,1725245470083,-500.0,0.00026027,2]
[336931230,1725245470092,-500.0,0.00026027,2]
[336931231,1725245470103,-1252.02,0.00026027,2]
[336931232,1725245470113,-500.0,0.00026027,2]
[336931233,1725245470125,-1471.21,0.00026027,2]
[336931234,1725245470137,-500.0,0.00026027,2]
[336931235,1725245470146,-1273.08,0.00026027,2]
[336931236,1725245470155,-500.0,0.00026027,2]
[336931237,1725245470165,-500.0,0.00026027,2]
[336931238,1725245470176,-543.66,0.00026027,2]
[336931239,1725245470186,-951.43,0.00026027,2]
[336931240,1725245470196,-353.40416335,0.00026027,2]
[336931241,1725245472332,192.31584973,0.00023664,2]
[336931244,1725245932951,166.04261,0.00014247,2]
[336931248,1725246411211,236.3718193,0.00023,60]
[336931249,1725246428876,475.0,0.00025,120]
[336931250,1725246469914,163.578716,0.00014247,2]
[336931251,1725246552134,-164.0670824,0.00023333,2]
[336931252,1725246552159,-163.638579,0.00023582,2]
[336931253,1725246552181,-422.076147,0.00023836,2]
[336931289,1725246632882,-300.0,0.00024556,2]
[336931291,1725246632892,-942.65072406,0.00024557,2]
[336931306,1725246639241,-16500.97295268,0.00024557,2]
[336931307,1725246639251,-639.87167629,0.00024557,2]
[336931308,1725246639261,-500.0,0.00024657,2]
[336931309,1725246639272,-501.4242493,0.00024657,2]
[336931310,1725246639281,-497.44548974,0.00024657,2]
[336931311,1725246639292,-500.0,0.00024657,2]
[336931312,1725246639304,-502.63088586,0.00024657,2]
[336931313,1725246639314,-500.0,0.00024657,2]
[336931314,1725246639324,-500.0,0.00024657,2]
[336931315,1725246639335,-416.43133245,0.00024657,2]
[336931316,1725246639346,-500.0,0.00024657,2]
[336931317,1725246639360,-516.20079667,0.00024657,2]
[336931318,1725246639371,-500.0,0.00024657,2]
[336931319,1725246639380,-500.0,0.00024657,2]
[336931320,1725246639390,-500.0,0.00024657,2]
[336931321,1725246639400,-500.0,0.00024657,2]
[336931322,1725246639409,-593.39,0.00024657,2]
[336931323,1725246639418,-500.0,0.00024657,2]
[336931324,1725246639428,-500.0,0.00024657,2]
[336931325,1725246639437,-500.0,0.00024657,2]
[336931326,1725246639456,-500.0,0.00024657,2]
[336931327,1725246639467,-500.0,0.00024657,2]
[336931328,1725246639476,-500.0,0.00024657,2]
[336931329,1725246639485,-536.22507166,0.00024657,2]
[336931330,1725246639495,-500.0,0.00024657,2]
[336931331,1725246639504,-500.0,0.00024657,2]
[336931332,1725246639514,-500.0,0.00024657,2]
[336931333,1725246639524,-456.13021253,0.00024657,2]
[336931334,1725246639534,-500.0,0.00024657,2]
[336931335,1725246639544,-500.0,0.00024657,2]
[336931336,1725246639749,-500.0,0.00024657,2]
[336931337,1725246639760,-500.0,0.00024657,2]
[336931338,1725246639769,-500.0,0.00024657,2]
[336931339,1725246639779,-500.0,0.00024657,2]
[336931340,1725246639788,-500.0,0.00024657,2]
[336931341,1725246639797,-598.96727796,0.00024657,2]
[336931342,1725246639806,-500.0,0.00024657,2]
[336931343,1725246639816,-259.10014053,0.00024657,2]
[336931344,1725246639825,-496.03349054,0.00024657,2]
[336931345,1725246639835,-500.0,0.00024657,2]
[336931346,1725246639845,-369.54532474,0.00024657,2]
[336931347,1725246639857,-500.0,0.00024657,2]
[336931348,1725246639866,-500.0,0.00024657,2]
[336931349,1725246639876,-500.0,0.00024657,2]
[336931350,1725246639885,-500.0,0.00024657,2]
[336931351,1725246639895,-504.93816067,0.00024657,2]
[336931352,1725246639905,-500.0,0.00024657,2]
[336931353,1725246639914,-500.0,0.00024657,2]
[336931354,1725246639924,-501.5575265,0.00024657,2]
[336931355,1725246639935,-581.91,0.00024657,2]
[336931356,1725246639944,-390.63428578,0.00024657,2]
[336931357,1725246639954,-500.0,0.00024657,2]
[336931358,1725246639964,-500.0,0.00024657,2]
[336931359,1725246639973,-500.0,0.00024657,2]
[336931360,1725246639983,-500.0,0.00024657,2]
[336931361,1725246639993,-500.0,0.00024657,2]
[336931362,1725246640002,-1098.22,0.00024657,2]
[336931363,1725246640016,-500.0,0.00024657,2]
[336931364,1725246640027,-500.0,0.00024657,2]
[336931365,1725246640036,-500.0,0.00024657,2]
[336931366,1725246640049,-500.0,0.00024657,2]
[336931367,1725246640060,-500.0,0.00024657,2]
[336931368,1725246640070,-500.0,0.00024657,2]
[336931369,1725246640080,-500.0,0.00024657,2]
[336931370,1725246640089,-500.0,0.00024657,2]
[336931371,1725246640099,-500.0,0.00024657,2]
[336931372,1725246640110,-500.0,0.00024657,2]
[336931373,1725246640120,-500.0,0.00024657,2]
[336931374,1725246640130,-650.82,0.00024657,2]
[336931375,1725246640141,-500.0,0.00024657,2]
[336931376,1725246640151,-500.0,0.00024657,2]
[336931377,1725246640161,-500.0,0.00024657,2]
[336931378,1725246640171,-500.0,0.00024657,2]
[336931379,1725246640181,-500.0,0.00024657,2]
[336931380,1725246640190,-500.0,0.00024657,2]
[336931381,1725246640200,-500.0,0.00024657,2]
[336931382,1725246640210,-500.0,0.00024657,2]
[336931383,1725246640219,-500.0,0.00024657,2]
[336931384,1725246640229,-500.0,0.00024657,2]
[336931385,1725246640239,-505.96564613,0.00024657,2]
[336931386,1725246640249,-584.85,0.00024657,2]
[336931387,1725246640258,-500.0,0.00024657,2]
[336931388,1725246640268,-500.0,0.00024657,2]
[336931389,1725246640278,-500.0,0.00024657,2]
[336931390,1725246640288,-540.76280674,0.00024657,2]
[336931391,1725246640303,-500.0,0.00024657,2]
[336931392,1725246640315,-500.0,0.00024657,2]
[336931393,1725246640327,-500.0,0.00024657,2]
[336931394,1725246640338,-502.8123865,0.00024657,2]
[336931395,1725246640349,-500.0,0.00024657,2]
[336931396,1725246640360,-725.61,0.00024657,2]
[336931397,1725246640370,-500.0,0.00024657,2]
[336931398,1725246640381,-584.16,0.00024657,2]
[336931399,1725246640391,-500.0,0.00024657,2]
[336931400,1725246640400,-500.0,0.00024657,2]
[336931401,1725246640410,-504.32544795,0.00024657,2]
[336931402,1725246640420,-500.0,0.00024657,2]
[336931403,1725246640432,-500.0,0.00024657,2]
[336931404,1725246640442,-505.64684433,0.00024657,2]
[336931405,1725246640452,-527.96210236,0.00024657,2]
[336931406,1725246640462,-500.0,0.00024657,2]
[336931407,1725246640472,-500.0,0.00024657,2]
[336931408,1725246640482,-500.0,0.00024657,2]
[336931409,1725246640492,-500.0,0.00024657,2]
[336931410,1725246640502,-500.0,0.00024657,2]
[336931411,1725246640511,-500.0,0.00024657,2]
[336931412,1725246640521,-500.0,0.00024657,2]
[336931413,1725246640530,-500.0,0.00024657,2]
[336931414,1725246640541,-500.0,0.00024657,2]
[336931415,1725246640550,-500.0,0.00024657,2]
[336931416,1725246640560,-500.0,0.00024657,2]
[336931417,1725246640569,-500.0,0.00024657,2]
[336931418,1725246640579,-500.0,0.00024657,2]
[336931419,1725246640588,-500.0,0.00024657,2]
[336931420,1725246640598,-500.0,0.00024657,2]
[336931421,1725246640609,-500.0,0.00024657,2]
[336931422,1725246640619,-500.0,0.00024657,2]
[336931423,1725246640628,-500.0,0.00024657,2]
[336931424,1725246640638,-500.0,0.00024657,2]
[336931425,1725246640651,-239.88253188,0.00024657,2]
[336931426,1725246640662,-500.0,0.00024657,2]
[336931428,1725246640671,-500.0,0.00024657,2]
[336931430,1725246640681,-500.0,0.00024657,2]
[336931432,1725246640690,-500.0,0.00024657,2]
[336931434,1725246640700,-500.0,0.00024657,2]
[336931435,1725246640710,-500.0,0.00024657,2]
[336931436,1725246640721,-561.50226896,0.00024657,2]
[336931437,1725246640731,-500.0,0.00024657,2]
[336931438,1725246640741,-500.0,0.00024657,2]
[336931439,1725246640751,-2872.18,0.00024657,2]
[336931440,1725246640761,-500.0,0.00024657,2]
[336931441,1725246640771,-500.0,0.00024657,2]
[336931442,1725246640780,-500.0,0.00024657,2]
[336931443,1725246640790,-537.31,0.00024657,2]
[336931444,1725246640799,-500.0,0.00024657,2]
[336931445,1725246640809,-500.0,0.00024657,2]
[336931446,1725246640818,-500.0,0.00024657,2]
[336931447,1725246640828,-500.0,0.00024657,2]
[336931448,1725246640839,-500.0,0.00024657,2]
[336931449,1725246640849,-507.61811917,0.00024657,2]
[336931450,1725246640863,-501.30631589,0.00024657,2]
[336931451,1725246640872,-500.0,0.00024657,2]
[336931452,1725246640882,-500.0,0.00024657,2]
[336931453,1725246640892,-500.0,0.00024657,2]
[336931454,1725246640904,-500.0,0.00024657,2]
[336931455,1725246640914,-500.0,0.00024657,2]
[336931456,1725246640923,-500.0,0.00024657,2]
[336931457,1725246640935,-500.0,0.00024657,2]
[336931459,1725246640945,-500.0,0.00024657,2]
[336931461,1725246640956,-500.0,0.00024657,2]
[336931462,1725246640966,-500.0,0.00024657,2]
[336931464,1725246640975,-500.0,0.00024657,2]
[336931466,1725246640985,-566.36,0.00024657,2]
[336931468,1725246640995,-500.0,0.00024657,2]
[336931470,1725246641005,-567.92,0.00024657,2]
[336931471,1725246641015,-976.15,0.00024657,2]
[336931472,1725246641025,-500.0,0.00024657,2]
[336931473,1725246641035,-577.8,0.00024657,2]
[336931474,1725246641045,-669.39,0.00024657,2]
[336931475,1725246641055,-500.0,0.00024657,2]
[336931476,1725246641065,-632.17,0.00024657,2]
[336931477,1725246641074,-500.0,0.00024657,2]
[336931478,1725246641085,-500.0,0.00024657,2]
[336931479,1725246641095,-500.0,0.00024657,2]
[336931480,1725246641105,-500.0,0.00024657,2]
[336931481,1725246641115,-500.0,0.00024657,2]
[336931482,1725246641125,-564.97,0.00024657,2]
[336931483,1725246641135,-200.0,0.00024657,2]
[336931484,1725246641144,-500.0,0.00024657,2]
[336931485,1725246641154,-500.55,0.00024657,2]
[336931486,1725246641164,-500.0,0.00024657,2]
[336931488,1725246641174,-500.0,0.00024657,2]
[336931490,1725246641185,-500.0,0.00024657,2]
[336931492,1725246641195,-500.0,0.00024657,2]
[336931494,1725246641205,-500.0,0.00024657,2]
[336931496,1725246641215,-500.0,0.00024657,2]
[336931497,1725246641225,-500.0,0.00024657,2]
[336931498,1725246641234,-500.0,0.00024657,2]
[336931499,1725246641244,-500.0,0.00024657,2]
[336931500,1725246641254,-504.67124278,0.00024657,2]
[336931501,1725246641264,-500.0,0.00024657,2]
[336931502,1725246641274,-500.0,0.00024657,2]
[336931503,1725246641284,-500.0,0.00024657,2]
[336931504,1725246641294,-500.0,0.00024657,2]
[336931505,1725246641304,-502.33354262,0.00024657,2]
[336931506,1725246641314,-500.0,0.00024657,2]
[336931507,1725246641323,-500.0,0.00024657,2]
[336931508,1725246641335,-500.0,0.00024657,2]
[336931509,1725246641345,-500.0,0.00024657,2]
[336931510,1725246641357,-501.45025341,0.00024657,2]
[336931511,1725246641367,-500.0,0.00024657,2]
[336931512,1725246641377,-500.0,0.00024657,2]
[336931513,1725246641388,-500.0,0.00024657,2]
[336931514,1725246641398,-500.0,0.00024657,2]
[336931515,1725246641408,-500.0,0.00024657,2]
[336931516,1725246641419,-500.0,0.00024657,2]
[336931517,1725246641429,-500.0,0.00024657,2]
[336931518,1725246641440,-500.0,0.00024657,2]
[336931519,1725246641451,-502.52122468,0.00024657,2]
[336931520,1725246641462,-829.93,0.00024657,2]
[336931521,1725246641471,-500.0,0.00024657,2]
[336931522,1725246641480,-500.0,0.00024657,2]
[336931523,1725246641490,-807.15,0.00024657,2]
[336931524,1725246641499,-500.0,0.00024657,2]
[336931525,1725246641509,-501.90515221,0.00024657,2]
[336931526,1725246641518,-500.0,0.00024657,2]
[336931527,1725246641527,-505.89865294,0.00024657,2]
[336931528,1725246641545,-772.98,0.00024657,2]
[336931529,1725246641557,-500.0,0.00024657,2]
[336931530,1725246641567,-500.0,0.00024657,2]
[336931531,1725246641577,-505.07028392,0.00024657,2]
[336931532,1725246641587,-500.0,0.00024657,2]
[336931533,1725246641597,-500.0,0.00024657,2]
[336931534,1725246641607,-500.0,0.00024657,2]
[336931535,1725246641617,-500.0,0.00024657,2]
[336931536,1725246641626,-500.0,0.00024657,2]
[336931537,1725246641636,-500.0,0.00024657,2]
[336931538,1725246641648,-597.37,0.00024657,2]
[336931539,1725246641659,-500.0,0.00024657,2]
[336931540,1725246641669,-500.0,0.00024657,2]
[336931541,1725246641679,-500.0,0.00024657,2]
[336931542,1725246641689,-500.0,0.00024657,2]
[336931543,1725246641699,-500.0,0.00024657,2]
[336931544,1725246641709,-288.97975478,0.00024657,2]
[336931545,1725246641718,-500.0,0.00024657,2]
[336931546,1725246641727,-500.0,0.00024657,2]
[336931547,1725246641737,-500.0,0.00024657,2]
[336931548,1725246641747,-500.0,0.00024657,2]
[336931549,1725246641757,-529.3908934,0.00024657,2]
[336931550,1725246641766,-500.0,0.00024657,2]
[336931551,1725246641777,-500.0,0.00024657,2]
[336931552,1725246641787,-244.59101297,0.00024657,2]
[336931553,1725246641797,-500.0,0.00024657,2]
[336931554,1725246641806,-500.0,0.00024657,2]
[336931555,1725246641816,-500.0,0.00024657,2]
[336931556,1725246641826,-443.52602092,0.00024657,2]
[336931557,1725246641836,-500.0,0.00024657,2]
[336931558,1725246641847,-849.94,0.00024657,2]
[336931559,1725246641859,-1574.39,0.00024657,2]
[336931560,1725246641870,-500.0,0.00024657,2]
[336931561,1725246641880,-212.62175147,0.00024657,2]
[336931562,1725246642322,-401.80824853,0.00024657,2]
[336931563,1725246642334,-901.44,0.00024657,2]
[336931564,1725246642343,-500.0,0.00024657,2]
[336931565,1725246642352,-1131.06,0.00024657,2]
[336931566,1725246642363,-500.0,0.00024657,2]
[336931567,1725246642373,-500.0,0.00024657,2]
[336931568,1725246642383,-500.0,0.00024657,2]
[336931569,1725246642393,-225.31405573,0.00024657,2]
[336931570,1725246642402,-500.0,0.00024657,2]
[336931571,1725246642412,-500.0,0.00024657,2]
[336931572,1725246642421,-500.0,0.00024657,2]
[336931573,1725246642430,-1008.68,0.00024657,2]
[336931574,1725246642440,-506.14485071,0.00024657,2]
[336931575,1725246642450,-665.0,0.00024657,2]
[336931576,1725246642460,-500.0,0.00024657,2]
[336931577,1725246642469,-1231.0,0.00024657,2]
[336931578,1725246642479,-500.0,0.00024657,2]
[336931579,1725246642488,-500.0,0.00024657,2]
[336931580,1725246642497,-500.0,0.00024657,2]
[336931581,1725246642506,-500.0,0.00024657,2]
[336931582,1725246642517,-500.0,0.00024657,2]
[336931583,1725246642527,-500.0,0.00024657,2]
[336931584,1725246642536,-500.0,0.00024657,2]
[336931585,1725246642546,-512.17694907,0.00024657,2]
[336931586,1725246642555,-1001.68,0.00024657,2]
[336931587,1725246642565,-500.0,0.00024657,2]
[336931588,1725246642574,-500.0,0.00024657,2]
[336931589,1725246642584,-500.0,0.00024657,2]
[336931590,1725246642593,-500.0,0.00024657,2]
[336931591,1725246642602,-1964.96,0.00024657,2]
[336931592,1725246642612,-500.0,0.00024657,2]
[336931593,1725246642622,-500.0,0.00024657,2]
[336931594,1725246642631,-2308.75,0.00024657,2]
[336931595,1725246642640,-1557.63,0.00024657,2]
[336931596,1725246642649,-500.0,0.00024657,2]
[336931597,1725246642659,-500.0,0.00024657,2]
[336931598,1725246642668,-500.0,0.00024657,2]
[336931599,1725246642678,-500.0,0.00024657,2]
[336931600,1725246642687,-500.0,0.00024657,2]
[336931601,1725246642697,-500.0,0.00024657,2]
[336931602,1725246642707,-770.26,0.00024657,2]
[336931603,1725246642716,-511.48,0.00024657,2]
[336931604,1725246642730,-500.0,0.00024657,2]
[336931605,1725246642740,-500.0,0.00024657,2]
[336931606,1725246642749,-500.0,0.00024657,2]
[336931607,1725246642759,-500.0,0.00024657,2]
[336931608,1725246642769,-1131.43,0.00024657,2]
[336931609,1725246642779,-1178.6,0.00024657,2]
[336931610,1725246642789,-1800.19,0.00024657,2]
[336931611,1725246642799,-10167.07,0.00024657,2]
[336931612,1725246642808,-638.48,0.00024657,2]
[336931613,1725246642818,-500.0,0.00024657,2]
[336931614,1725246642827,-791.36,0.00024657,2]
[336931615,1725246642838,-500.0,0.00024657,2]
[336931616,1725246642847,-1503.03,0.00024657,2]
[336931617,1725246642858,-565.16,0.00024657,2]
[336931618,1725246642868,-305.72984482,0.00024657,2]
[336931619,1725246642878,-500.0,0.00024657,2]
[336931620,1725246642887,-500.0,0.00024657,2]
[336931621,1725246642897,-500.0,0.00024657,2]
[336931622,1725246642906,-500.0,0.00024657,2]
[336931623,1725246642916,-1031.19,0.00024657,2]
[336931624,1725246642925,-500.0,0.00024657,2]
[336931625,1725246642934,-2334.08,0.00024657,2]
[336931626,1725246642944,-536.95610484,0.00024657,2]
[336931627,1725246642953,-868.09,0.00024657,2]
[336931628,1725246642962,-1655.52,0.00024657,2]
[336931629,1725246642972,-500.0,0.00024657,2]
[336931630,1725246642981,-769.76,0.00024657,2]
[336931631,1725246642991,-500.0,0.00024657,2]
[336931632,1725246643000,-1333.93,0.00024657,2]
[336931633,1725246643009,-1146.78,0.00024657,2]
[336931634,1725246643019,-548.55,0.00024657,2]
[336931635,1725246643028,-500.0,0.00024657,2]
[336931636,1725246643038,-500.0,0.00024657,2]
[336931637,1725246643048,-1178.14,0.00024657,2]
[336931638,1725246643058,-1350.13,0.00024657,2]
[336931639,1725246643068,-500.0,0.00024657,2]
[336931640,1725246643078,-1303.21,0.00024657,2]
[336931641,1725246643088,-878.8,0.00024657,2]
[336931642,1725246643097,-1173.44,0.00024657,2]
[336931643,1725246643107,-3627.98,0.00024657,2]
[336931644,1725246643116,-1157.11,0.00024657,2]
[336931645,1725246643126,-2043.51,0.00024657,2]
[336931646,1725246643135,-500.0,0.00024657,2]
[336931647,1725246643145,-593.24,0.00024657,2]
[336931648,1725246643154,-500.0,0.00024657,2]
[336931649,1725246643164,-500.0,0.00024657,2]
[336931650,1725246643173,-870.56,0.00024657,2]
[336931651,1725246643182,-1292.3,0.00024657,2]
[336931652,1725246643192,-439.35630765,0.00024657,2]
[336931653,1725246643202,-972.92,0.00024657,2]
[336931654,1725246643211,-1662.53,0.00024657,2]
[336931655,1725246643220,-573.64,0.00024657,2]
[336931656,1725246643230,-500.0,0.00024657,2]
[336931657,1725246643239,-500.0,0.00024657,2]
[336931658,1725246643248,-572.1840676,0.00024657,2]
[336931659,1725246643259,-1027.98,0.00024657,2]
[336931660,1725246643269,-733.05,0.00024657,2]
[336931661,1725246643279,-523.02,0.00024657,2]
[336931662,1725246643288,-1005.51,0.00024657,2]
[336931663,1725246643301,-828.87,0.00024657,2]
[336931664,1725246643311,-531.4484865,0.00024657,2]
[336931665,1725246643320,-1187.14,0.00024657,2]
[336931666,1725246643330,-500.0,0.00024657,2]
[336931667,1725246643342,-500.0,0.00024657,2]
[336931668,1725246643351,-500.0,0.00024657,2]
[336931669,1725246643363,-500.0,0.00024657,2]
[336931670,1725246643375,-806.87,0.00024657,2]
[336931671,1725246643384,-500.0,0.00024657,2]
[336931672,1725246643394,-6705.5,0.00024657,2]
[336931673,1725246643403,-500.0,0.00024657,2]
[336931674,1725246643412,-500.0,0.00024657,2]
[336931675,1725246643422,-529.47,0.00024657,2]
[336931676,1725246643432,-500.0,0.00024657,2]
[336931677,1725246643442,-1389.38,0.00024657,2]
[336931678,1725246643451,-1297.85,0.00024657,2]
[336931679,1725246643461,-500.0,0.00024657,2]
[336931680,1725246643471,-500.0,0.00024657,2]
[336931681,1725246643480,-780.64,0.00024657,2]
[336931682,1725246643490,-565.15,0.00024657,2]
[336931683,1725246643499,-1496.6,0.00024657,2]
[336931684,1725246643510,-2657.9,0.00024657,2]
[336931685,1725246643521,-500.0,0.00024657,2]
[336931686,1725246643710,-500.0,0.00024657,2]
[336931687,1725246643721,-1468.45,0.00024657,2]
[336931688,1725246643732,-2406.94,0.00024657,2]
[336931689,1725246643742,-649.55,0.00024657,2]
[336931690,1725246643752,-1696.86,0.00024657,2]
[336931691,1725246643762,-1127.39,0.00024657,2]
[336931692,1725246643772,-742.12,0.00024657,2]
[336931693,1725246643781,-500.0,0.00024657,2]
[336931694,1725246643790,-1123.72,0.00024657,2]
[336931695,1725246643800,-500.0,0.00024657,2]
[336931696,1725246643809,-500.0,0.00024657,2]
[336931697,1725246643819,-500.0,0.00024657,2]
[336931698,1725246643828,-500.0,0.00024657,2]
[336931699,1725246643838,-500.0,0.00024657,2]
[336931700,1725246643848,-7257.09,0.00024657,2]
[336931701,1725246643860,-1057.1,0.00024657,2]
[336931702,1725246643870,-1038.05,0.00024657,2]
[336931703,1725246643880,-500.0,0.00024657,2]
[336931704,1725246643890,-1627.5,0.00024657,2]
[336931705,1725246643899,-500.0,0.00024658,2]
[336931706,1725246643910,-500.0,0.00024658,2]
[336931707,1725246643920,-500.0,0.00024658,2]
[336931708,1725246643930,-500.0,0.00024658,2]
[336931709,1725246643940,-500.0,0.00024658,2]
[336931710,1725246643950,-500.0,0.00024658,2]
[336931711,1725246643959,-500.0,0.00024658,2]
[336931712,1725246643969,-192.05688549,0.00024658,2]
[336931713,1725246643979,-500.0,0.00024658,2]
[336931714,1725246643988,-500.0,0.00024658,2]
[336931715,1725246643998,-500.0,0.00024658,2]
[336931716,1725246644008,-500.0,0.00024658,2]
[336931717,1725246644018,-500.0,0.00024658,2]
[336931718,1725246644030,-500.0,0.00024658,2]
[336931719,1725246644041,-500.0,0.00024658,2]
[336931720,1725246644053,-500.0,0.00024658,2]
[336931721,1725246644063,-500.0,0.00024658,2]
[336931722,1725246644072,-500.0,0.00024658,2]
[336931723,1725246644082,-500.0,0.00024658,2]
[336931724,1725246644091,-500.0,0.00024658,2]
[336931725,1725246644101,-500.0,0.00024658,2]
[336931726,1725246644111,-500.0,0.00024658,2]
[336931727,1725246644121,-500.0,0.00024673,2]
[336931728,1725246644130,-388.0879828,0.00024795,2]
[336931729,1725246644140,-639.87167627,0.00024831,2]
[336931730,1725246644149,-228.97477465,0.0002493,2]
[336931731,1725246644159,-280.63957312,0.0002493,2]
[336931732,1725246644169,-500.0,0.00024931,2]
[336931734,1725246644178,-500.0,0.00024931,2]
[336931736,1725246644188,-500.0,0.00024931,2]
[336931738,1725246644197,-500.0,0.00024931,2]
[336931741,1725246644206,-500.0,0.00024931,2]
[336931743,1725246644216,-593.39,0.00024931,2]
[336931745,1725246644226,-309.44318553,0.00024931,2]
[336931746,1725246644235,-500.0,0.00024931,2]
[336931747,1725246644245,-500.0,0.00024931,2]
[336931748,1725246644255,-500.0,0.00024931,2]
[336931749,1725246644265,-500.0,0.00024931,2]
[336931750,1725246644275,-500.0,0.00024931,2]
[336931751,1725246644285,-500.0,0.00024931,2]
[336931752,1725246644298,-500.0,0.00024931,2]
[336931753,1725246644308,-500.0,0.00024931,2]
[336931754,1725246644317,-500.0,0.00024931,2]
[336931755,1725246644327,-500.0,0.00024931,2]
[336931756,1725246644338,-500.0,0.00024931,2]
[336931757,1725246644347,-500.0,0.00024931,2]
[336931758,1725246644358,-500.0,0.00024931,2]
[336931759,1725246644367,-500.0,0.00024931,2]
[336931760,1725246644379,-220.03224461,0.00024931,2]
[336931761,1725246644390,-581.91,0.00024931,2]
[336931762,1725246644401,-500.0,0.00024931,2]
[336931763,1725246644411,-501.91002773,0.00024931,2]
[336931764,1725246644422,-500.0,0.00024931,2]
[336931766,1725246644432,-500.0,0.00024931,2]
[336931768,1725246644442,-500.0,0.00024931,2]
[336931770,1725246644452,-500.0,0.00024931,2]
[336931772,1725246644462,-503.75139708,0.00024931,2]
[336931774,1725246644472,-650.82,0.00024931,2]
[336931776,1725246644481,-500.0,0.00024931,2]
[336931778,1725246644490,-500.0,0.00024931,2]
[336931780,1725246644500,-500.0,0.00024931,2]
[336931782,1725246644509,-584.85,0.00024931,2]
[336931784,1725246644520,-500.0,0.00024931,2]
[336931786,1725246644529,-500.0,0.00024931,2]
[336931788,1725246644538,-500.0,0.00024931,2]
[336931790,1725246644547,-500.0,0.00024931,2]
[336931792,1725246644556,-500.0,0.00024931,2]
[336931794,1725246644566,-725.61,0.00024931,2]
[336931796,1725246644575,-500.0,0.00024931,2]